[Event "Titled Tuesday Blitz April 11 Early 2023"]
[White "Karas, Marek"]
[Black "Keymer, Vincent"]
[WhiteFideId "14928558"]
[BlackFideId "12940690"]
[WhiteElo "2233"]
[BlackElo "2651"]
[Result "1-0"]
[Round "02"]
[TimeControl "180+2"]
[Date "2023.04.11"]
[WhiteClock "0:00:06"]
[BlackClock "0:00:04"]

1. d4 {[%clk 0:03:00]}  Nf6 {[%clk 0:02:59]} 2. Nf3 {[%clk 0:03:00]}  d5 {[%clk 0:02:58]} 3. c4 {[%clk 0:03:00]}  e6 {[%clk 0:02:58]} 4. Nc3 {[%clk 0:03:00]}  c6 {[%clk 0:02:57]} 5. cxd5 {[%clk 0:02:59]}  exd5 {[%clk 0:02:57]} 6. Bg5 {[%clk 0:02:59]}  Be7 {[%clk 0:02:57]} 7. e3 {[%clk 0:03:00]}  Bf5 {[%clk 0:02:57]} 8. Bd3 {[%clk 0:03:00]}  Bxd3 {[%clk 0:02:56]} 9. Qxd3 {[%clk 0:03:01]}  Nbd7 {[%clk 0:02:56]} 10. O-O {[%clk 0:03:01]}  O-O {[%clk 0:02:57]} 11. Rab1 {[%clk 0:02:59]}  a5 {[%clk 0:02:56]} 12. a3 {[%clk 0:02:58]}  Re8 {[%clk 0:02:53]} 13. Bxf6 {[%clk 0:02:58]}  Nxf6 {[%clk 0:02:52]} 14. Nd2 {[%clk 0:02:57]}  Bd6 {[%clk 0:02:44]} 15. h3 {[%clk 0:02:49]}  Bc7 {[%clk 0:02:29]} 16. Rfe1 {[%clk 0:02:39]}  Qd6 {[%clk 0:02:29]} 17. Nf1 {[%clk 0:02:38]}  Ne4 {[%clk 0:02:14]} 18. Nxe4 {[%clk 0:02:34]}  Rxe4 {[%clk 0:02:14]} 19. Ng3 {[%clk 0:02:27]}  Re6 {[%clk 0:02:14]} 20. Qf5 {[%clk 0:02:23]}  Rae8 {[%clk 0:02:10]} 21. b4 {[%clk 0:02:16]}  b5 {[%clk 0:02:01]} 22. Qg4 {[%clk 0:01:59]}  Rg6 {[%clk 0:01:53]} 23. Qf3 {[%clk 0:01:55]}  Ree6 {[%clk 0:01:42]} 24. e4 {[%clk 0:01:52]}  dxe4 {[%clk 0:01:29]} 25. Rxe4 {[%clk 0:01:53]}  axb4 {[%clk 0:01:29]} 26. axb4 {[%clk 0:01:50]}  h6 {[%clk 0:01:23]} 27. Kf1 {[%clk 0:01:38]}  Rgf6 {[%clk 0:00:27]} 28. Rxe6 {[%clk 0:01:20]}  Qxe6 {[%clk 0:00:27]} 29. Qd3 {[%clk 0:01:14]}  Bxg3 {[%clk 0:00:25]} 30. Qxg3 {[%clk 0:01:12]}  Qc4+ {[%clk 0:00:22]} 31. Kg1 {[%clk 0:01:10]}  Qxd4 {[%clk 0:00:22]} 32. Qb8+ {[%clk 0:00:58]}  Kh7 {[%clk 0:00:22]} 33. Qg3 {[%clk 0:00:59]}  Qf4 {[%clk 0:00:20]} 34. Qd3+ {[%clk 0:00:53]}  Qf5 {[%clk 0:00:20]} 35. Qxf5+ {[%clk 0:00:51]}  Rxf5 {[%clk 0:00:21]} 36. Rc1 {[%clk 0:00:48]}  Rf6 {[%clk 0:00:21]} 37. f3 {[%clk 0:00:44]}  g5 {[%clk 0:00:21]} 38. Kf2 {[%clk 0:00:44]}  Re6 {[%clk 0:00:21]} 39. Rc5 {[%clk 0:00:44]}  Kg6 {[%clk 0:00:21]} 40. g4 {[%clk 0:00:42]}  Kf6 {[%clk 0:00:21]} 41. Kg3 {[%clk 0:00:40]}  Ke7 {[%clk 0:00:21]} 42. h4 {[%clk 0:00:35]}  f6 {[%clk 0:00:21]} 43. h5 {[%clk 0:00:32]}  Kd7 {[%clk 0:00:20]} 44. Rf5 {[%clk 0:00:27]}  Rd6 {[%clk 0:00:20]} 45. Kf2 {[%clk 0:00:25]}  Ke8 {[%clk 0:00:17]} 46. Ke3 {[%clk 0:00:23]}  Ke7 {[%clk 0:00:14]} 47. Rc5 {[%clk 0:00:22]}  Kd7 {[%clk 0:00:14]} 48. Ke4 {[%clk 0:00:21]}  Rd1 {[%clk 0:00:09]} 49. Kf5 {[%clk 0:00:19]}  Rd4 {[%clk 0:00:08]} 50. Kg6 {[%clk 0:00:18]}  Rxb4 {[%clk 0:00:07]} 51. Kxh6 {[%clk 0:00:18]}  Rc4 {[%clk 0:00:05]} 52. Rxc4 {[%clk 0:00:11]}  bxc4 {[%clk 0:00:05]} 53. Kg7 {[%clk 0:00:10]}  c3 {[%clk 0:00:04]} 54. h6 {[%clk 0:00:10]}  c2 {[%clk 0:00:05]} 55. h7 {[%clk 0:00:11]}  c1=Q {[%clk 0:00:05]} 56. h8=Q {[%clk 0:00:12]}  Qf4 {[%clk 0:00:05]} 57. Qg8 {[%clk 0:00:06]}  c5 {[%clk 0:00:03]} 58. Qd5+ {[%clk 0:00:06]}  Qd6 {[%clk 0:00:03]} 59. Qc4 {[%clk 0:00:06]}  Qe7+ {[%clk 0:00:02]} 60. Kg6 {[%clk 0:00:06]}  Qd6 {[%clk 0:00:02]} 61. Qf7+ {[%clk 0:00:06]}  Kc6 {[%clk 0:00:03]} 62. Qc4 {[%clk 0:00:06]}  Kb6 {[%clk 0:00:03]} 63. Qb3+ {[%clk 0:00:06]}  Kc7 {[%clk 0:00:03]} 64. Qf7+ {[%clk 0:00:06]}  Kc6 {[%clk 0:00:04]} 65. Qe8+ {[%clk 0:00:06]}  Kd5 {[%clk 0:00:04]} 66. Qe4# {[%clk 0:00:06]} 1-0


[Site "https://www.chess.com"]

[Event "Titled Tuesday Blitz April 11 Early 2023"]
[White "Bacallao Alonso, Yusnel"]
[Black "Yurasova, Daria"]
[WhiteFideId "3507416"]
[BlackFideId "34146919"]
[WhiteElo "2561"]
[BlackElo "2134"]
[Result "1-0"]
[Round "02"]
[TimeControl "180+2"]
[Date "2023.04.11"]
[WhiteClock "0:00:20"]
[BlackClock "0:00:11"]

1. d4 {[%clk 0:02:58]}  d5 {[%clk 0:02:57]} 2. c4 {[%clk 0:02:56]}  dxc4 {[%clk 0:02:57]} 3. Nf3 {[%clk 0:02:54]}  Nf6 {[%clk 0:02:57]} 4. e3 {[%clk 0:02:54]}  e6 {[%clk 0:02:58]} 5. Bxc4 {[%clk 0:02:54]}  a6 {[%clk 0:02:58]} 6. O-O {[%clk 0:02:54]}  b5 {[%clk 0:02:58]} 7. Be2 {[%clk 0:02:51]}  Bb7 {[%clk 0:02:59]} 8. a4 {[%clk 0:02:51]}  b4 {[%clk 0:02:59]} 9. Nbd2 {[%clk 0:02:50]}  Be7 {[%clk 0:02:59]} 10. Nc4 {[%clk 0:02:49]}  a5 {[%clk 0:02:59]} 11. b3 {[%clk 0:02:48]}  O-O {[%clk 0:02:59]} 12. Bb2 {[%clk 0:02:49]}  Nbd7 {[%clk 0:02:59]} 13. Rc1 {[%clk 0:02:44]}  c5 {[%clk 0:02:59]} 14. Nfe5 {[%clk 0:02:36]}  Nxe5 {[%clk 0:02:42]} 15. dxe5 {[%clk 0:02:31]}  Nd5 {[%clk 0:02:37]} 16. Qc2 {[%clk 0:02:28]}  Qc7 {[%clk 0:02:26]} 17. Rfd1 {[%clk 0:02:25]}  Rfd8 {[%clk 0:02:06]} 18. Nd6 {[%clk 0:02:16]}  Rxd6 {[%clk 0:01:21]} 19. exd6 {[%clk 0:02:17]}  Bxd6 {[%clk 0:01:22]} 20. h3 {[%clk 0:02:00]}  Ne7 {[%clk 0:01:05]} 21. Qd3 {[%clk 0:01:00]}  Nd5 {[%clk 0:00:41]} 22. Bf3 {[%clk 0:00:56]}  Bf8 {[%clk 0:00:39]} 23. Qc2 {[%clk 0:00:52]}  Rc8 {[%clk 0:00:35]} 24. Rd2 {[%clk 0:00:52]}  Bc6 {[%clk 0:00:30]} 25. Rcd1 {[%clk 0:00:50]}  Qb7 {[%clk 0:00:26]} 26. e4 {[%clk 0:00:35]}  Nb6 {[%clk 0:00:25]} 27. Rd8 {[%clk 0:00:34]}  Qc7 {[%clk 0:00:22]} 28. Rxf8+ {[%clk 0:00:28]}  Rxf8 {[%clk 0:00:19]} 29. Qxc5 {[%clk 0:00:28]}  Qb7 {[%clk 0:00:14]} 30. Rd6 {[%clk 0:00:24]}  Rc8 {[%clk 0:00:12]} 31. Qd4 {[%clk 0:00:21]}  Nd7 {[%clk 0:00:11]} 32. Qxg7# {[%clk 0:00:20]} 1-0


[Site "https://www.chess.com"]

[Event "Titled Tuesday Blitz April 11 Early 2023"]
[White "Devaev, Alexander"]
[Black "Riehle, Marco"]
[WhiteFideId "4169395"]
[BlackFideId "12904392"]
[WhiteElo "2204"]
[BlackElo "2462"]
[Result "0-1"]
[Round "02"]
[TimeControl "180+2"]
[Date "2023.04.11"]
[WhiteClock "0:00:01"]
[BlackClock "0:01:57"]

1. d4 {[%clk 0:02:57]}  d5 {[%clk 0:02:57]} 2. c4 {[%clk 0:02:57]}  e6 {[%clk 0:02:57]} 3. Nc3 {[%clk 0:02:57]}  c5 {[%clk 0:02:58]} 4. cxd5 {[%clk 0:02:57]}  cxd4 {[%clk 0:02:58]} 5. Qxd4 {[%clk 0:02:57]}  Nc6 {[%clk 0:02:57]} 6. Qd1 {[%clk 0:02:57]}  exd5 {[%clk 0:02:57]} 7. e3 {[%clk 0:02:57]}  d4 {[%clk 0:02:57]} 8. exd4 {[%clk 0:02:56]}  Qxd4 {[%clk 0:02:58]} 9. Be3 {[%clk 0:02:53]}  Qxd1+ {[%clk 0:02:57]} 10. Rxd1 {[%clk 0:02:53]}  Bb4 {[%clk 0:02:58]} 11. Ne2 {[%clk 0:02:44]}  Be6 {[%clk 0:02:53]} 12. a3 {[%clk 0:02:44]}  Ba5 {[%clk 0:02:53]} 13. b4 {[%clk 0:02:40]}  Nxb4 {[%clk 0:02:50]} 14. axb4 {[%clk 0:02:40]}  Bxb4 {[%clk 0:02:51]} 15. Rc1 {[%clk 0:02:29]}  Nf6 {[%clk 0:02:47]} 16. Bd2 {[%clk 0:02:22]}  O-O {[%clk 0:02:46]} 17. Ne4 {[%clk 0:01:19]}  Bxd2+ {[%clk 0:02:43]} 18. Nxd2 {[%clk 0:01:19]}  Rfd8 {[%clk 0:02:43]} 19. Nc3 {[%clk 0:01:14]}  a6 {[%clk 0:02:38]} 20. Be2 {[%clk 0:01:00]}  b5 {[%clk 0:02:36]} 21. Ndb1 {[%clk 0:00:53]}  b4 {[%clk 0:02:31]} 22. Na4 {[%clk 0:00:52]}  a5 {[%clk 0:02:24]} 23. Bf3 {[%clk 0:00:46]}  Rac8 {[%clk 0:02:24]} 24. Rxc8 {[%clk 0:00:38]}  Rxc8 {[%clk 0:02:25]} 25. Ke2 {[%clk 0:00:23]}  Bb3 {[%clk 0:02:18]} 26. Nb6 {[%clk 0:00:23]}  Re8+ {[%clk 0:02:18]} 27. Kd2 {[%clk 0:00:20]}  g6 {[%clk 0:02:18]} 28. Re1 {[%clk 0:00:18]}  Rb8 {[%clk 0:02:18]} 29. Re3 {[%clk 0:00:12]}  Rxb6 {[%clk 0:02:14]} 30. Rxb3 {[%clk 0:00:12]}  a4 {[%clk 0:02:15]} 31. Re3 {[%clk 0:00:10]}  a3 {[%clk 0:02:16]} 32. Nxa3 {[%clk 0:00:10]}  bxa3 {[%clk 0:02:17]} 33. Rxa3 {[%clk 0:00:11]}  Kg7 {[%clk 0:02:16]} 34. g3 {[%clk 0:00:09]}  h5 {[%clk 0:02:15]} 35. h4 {[%clk 0:00:09]}  Rb4 {[%clk 0:02:13]} 36. Ke3 {[%clk 0:00:09]}  Nd7 {[%clk 0:02:13]} 37. Ra7 {[%clk 0:00:08]}  Ne5 {[%clk 0:02:14]} 38. Bd5 {[%clk 0:00:08]}  Kf6 {[%clk 0:02:11]} 39. f4 {[%clk 0:00:07]}  Ng4+ {[%clk 0:02:08]} 40. Kf3 {[%clk 0:00:06]}  Nh6 {[%clk 0:02:08]} 41. Ba2 {[%clk 0:00:06]}  Rb2 {[%clk 0:02:05]} 42. Ra6+ {[%clk 0:00:05]}  Kg7 {[%clk 0:02:04]} 43. Ra7 {[%clk 0:00:05]}  Rc2 {[%clk 0:02:04]} 44. f5 {[%clk 0:00:05]}  Nxf5 {[%clk 0:02:00]} 45. Rxf7+ {[%clk 0:00:04]}  Kh6 {[%clk 0:02:00]} 46. Ra7 {[%clk 0:00:05]}  Rc3+ {[%clk 0:02:00]} 47. Kf4 {[%clk 0:00:05]}  Nxg3 {[%clk 0:01:58]} 48. Bg8 {[%clk 0:00:05]}  Ne2+ {[%clk 0:01:57]} 49. Ke5 {[%clk 0:00:05]}  g5 {[%clk 0:01:57]} 50. hxg5+ {[%clk 0:00:01]}  Kxg5 {[%clk 0:01:58]} 51. Bd5 {[%clk 0:00:01]}  Re3+ {[%clk 0:01:57]} 0-1


[Site "https://www.chess.com"]

[Event "Titled Tuesday Blitz April 11 Early 2023"]
[White "Toktomushev, Teimur"]
[Black "Matinian, Nikita"]
[WhiteFideId "14176726"]
[BlackFideId "24129100"]
[WhiteElo "2116"]
[BlackElo "2422"]
[Result "0-1"]
[Round "02"]
[TimeControl "180+2"]
[Date "2023.04.11"]
[WhiteClock "0:00:02"]
[BlackClock "0:00:46"]

1. d4 {[%clk 0:03:00]}  Nf6 {[%clk 0:02:58]} 2. c4 {[%clk 0:02:58]}  e6 {[%clk 0:02:58]} 3. Nf3 {[%clk 0:02:56]}  Bb4+ {[%clk 0:02:54]} 4. Bd2 {[%clk 0:02:56]}  a5 {[%clk 0:02:47]} 5. g3 {[%clk 0:02:52]}  b6 {[%clk 0:02:46]} 6. Bg2 {[%clk 0:02:52]}  Bb7 {[%clk 0:02:46]} 7. O-O {[%clk 0:02:52]}  O-O {[%clk 0:02:43]} 8. Bf4 {[%clk 0:02:31]}  Ne4 {[%clk 0:02:40]} 9. a3 {[%clk 0:02:21]}  Be7 {[%clk 0:02:39]} 10. Qc2 {[%clk 0:02:21]}  f5 {[%clk 0:02:39]} 11. Re1 {[%clk 0:01:36]}  Na6 {[%clk 0:02:34]} 12. Nfd2 {[%clk 0:01:15]}  g5 {[%clk 0:02:23]} 13. Be3 {[%clk 0:00:56]}  d5 {[%clk 0:02:07]} 14. f3 {[%clk 0:00:42]}  Nxd2 {[%clk 0:01:59]} 15. Nxd2 {[%clk 0:00:33]}  f4 {[%clk 0:01:59]} 16. Bf2 {[%clk 0:00:30]}  Bd6 {[%clk 0:01:51]} 17. e4 {[%clk 0:00:19]}  fxe3 {[%clk 0:01:49]} 18. Rxe3 {[%clk 0:00:17]}  Qf6 {[%clk 0:01:49]} 19. Rae1 {[%clk 0:00:15]}  Rae8 {[%clk 0:01:49]} 20. R3e2 {[%clk 0:00:13]}  Nb8 {[%clk 0:01:48]} 21. Bh3 {[%clk 0:00:12]}  e5 {[%clk 0:01:39]} 22. dxe5 {[%clk 0:00:08]}  Rxe5 {[%clk 0:01:35]} 23. Rxe5 {[%clk 0:00:08]}  Bxe5 {[%clk 0:01:36]} 24. Bg4 {[%clk 0:00:04]}  c5 {[%clk 0:01:33]} 25. cxd5 {[%clk 0:00:04]}  Bxd5 {[%clk 0:01:33]} 26. Nc4 {[%clk 0:00:05]}  Bd4 {[%clk 0:01:29]} 27. Ne3 {[%clk 0:00:02]}  Bxf3 {[%clk 0:01:27]} 28. Bxf3 {[%clk 0:00:02]}  Qxf3 {[%clk 0:01:28]} 29. Nd1 {[%clk 0:00:02]}  Nc6 {[%clk 0:01:22]} 30. Bxd4 {[%clk 0:00:02]}  Nxd4 {[%clk 0:01:22]} 31. Qg2 {[%clk 0:00:03]}  g4 {[%clk 0:01:10]} 32. Nc3 {[%clk 0:00:02]}  Kg7 {[%clk 0:01:01]} 33. Kh1 {[%clk 0:00:02]}  Rf7 {[%clk 0:01:01]} 34. Kg1 {[%clk 0:00:02]}  h5 {[%clk 0:01:00]} 35. Rf1 {[%clk 0:00:02]}  Qxf1+ {[%clk 0:00:59]} 36. Qxf1 {[%clk 0:00:03]}  Rxf1+ {[%clk 0:00:58]} 37. Kxf1 {[%clk 0:00:04]}  Nb3 {[%clk 0:00:57]} 38. Nd5 {[%clk 0:00:03]}  Nd2+ {[%clk 0:00:57]} 39. Ke2 {[%clk 0:00:03]}  Nc4 {[%clk 0:00:57]} 40. b3 {[%clk 0:00:03]}  Nxa3 {[%clk 0:00:57]} 41. Nxb6 {[%clk 0:00:03]}  Nc2 {[%clk 0:00:56]} 42. Kd3 {[%clk 0:00:03]}  Nd4 {[%clk 0:00:56]} 43. Nc4 {[%clk 0:00:02]}  Nxb3 {[%clk 0:00:55]} 44. Kc3 {[%clk 0:00:02]}  a4 {[%clk 0:00:56]} 45. Nb6 {[%clk 0:00:02]}  Nd4 {[%clk 0:00:55]} 46. Nxa4 {[%clk 0:00:02]}  Nf3 {[%clk 0:00:55]} 47. Nxc5 {[%clk 0:00:03]}  Nxh2 {[%clk 0:00:56]} 48. Kd3 {[%clk 0:00:02]}  Kg6 {[%clk 0:00:53]} 49. Ke3 {[%clk 0:00:02]}  Kf5 {[%clk 0:00:52]} 50. Nd3 {[%clk 0:00:02]}  Nf1+ {[%clk 0:00:49]} 51. Kf2 {[%clk 0:00:02]}  Nd2 {[%clk 0:00:49]} 52. Nf4 {[%clk 0:00:03]}  Ne4+ {[%clk 0:00:49]} 53. Kg2 {[%clk 0:00:03]}  h4 {[%clk 0:00:48]} 54. Ne2 {[%clk 0:00:02]}  h3+ {[%clk 0:00:46]} 55. Kh2 {[%clk 0:00:02]}  Nd2 {[%clk 0:00:46]} 0-1


[Site "https://www.chess.com"]

[Event "Titled Tuesday Blitz April 11 Early 2023"]
[White "Rottenwohrer Suarez, Juan"]
[Black "Jaferian, Koosha"]
[WhiteFideId "32068182"]
[BlackFideId "12507440"]
[WhiteElo "2174"]
[BlackElo "2073"]
[Result "0-1"]
[Round "02"]
[TimeControl "180+2"]
[Date "2023.04.11"]
[WhiteClock "0:01:46"]
[BlackClock "0:02:16"]

1. d4 {[%clk 0:03:00]}  Nf6 {[%clk 0:02:59]} 2. c4 {[%clk 0:03:00]}  e6 {[%clk 0:02:59]} 3. Nc3 {[%clk 0:03:00]}  Bb4 {[%clk 0:03:00]} 4. Qc2 {[%clk 0:03:00]}  O-O {[%clk 0:03:00]} 5. Nf3 {[%clk 0:02:57]}  d5 {[%clk 0:03:00]} 6. cxd5 {[%clk 0:02:55]}  exd5 {[%clk 0:03:00]} 7. Bg5 {[%clk 0:02:55]}  h6 {[%clk 0:02:54]} 8. Bxf6 {[%clk 0:02:49]}  Qxf6 {[%clk 0:02:55]} 9. a3 {[%clk 0:02:49]}  Bxc3+ {[%clk 0:02:52]} 10. Qxc3 {[%clk 0:02:50]}  c6 {[%clk 0:02:53]} 11. e3 {[%clk 0:02:49]}  Bf5 {[%clk 0:02:54]} 12. Be2 {[%clk 0:02:48]}  Nd7 {[%clk 0:02:54]} 13. O-O {[%clk 0:02:48]}  Rfe8 {[%clk 0:02:54]} 14. b4 {[%clk 0:02:49]}  Bg4 {[%clk 0:02:46]} 15. h3 {[%clk 0:02:45]}  Bh5 {[%clk 0:02:43]} 16. Rfe1 {[%clk 0:02:45]}  Nb6 {[%clk 0:02:43]} 17. a4 {[%clk 0:02:44]}  Nc4 {[%clk 0:02:34]} 18. Bxc4 {[%clk 0:02:41]}  Bxf3 {[%clk 0:02:33]} 19. Bf1 {[%clk 0:02:39]}  Be4 {[%clk 0:02:27]} 20. b5 {[%clk 0:02:39]}  Re6 {[%clk 0:02:27]} 21. bxc6 {[%clk 0:02:36]}  Rxc6 {[%clk 0:02:26]} 22. Qb3 {[%clk 0:02:29]}  Rb6 {[%clk 0:02:23]} 23. Qa3 {[%clk 0:02:28]}  Qg5 {[%clk 0:02:22]} 24. Rac1 {[%clk 0:02:18]}  Bxg2 {[%clk 0:02:17]} 25. Bxg2 {[%clk 0:01:51]}  Rg6 {[%clk 0:02:16]} 26. Kf1 {[%clk 0:01:52]}  Qxg2+ {[%clk 0:02:16]} 27. Ke2 {[%clk 0:01:52]}  Qxh3 {[%clk 0:02:16]} 28. Rc7 {[%clk 0:01:46]}  Rf6 {[%clk 0:02:16]} 0-1


[Site "https://www.chess.com"]

[Event "Titled Tuesday Blitz April 11 Early 2023"]
[White "Vetoshko, Volodymyr"]
[Black "Tarasova, Viktoriya"]
[WhiteFideId "14122480"]
[BlackFideId "4175840"]
[WhiteElo "2422"]
[BlackElo "2182"]
[Result "1/2-1/2"]
[Round "02"]
[TimeControl "180+2"]
[Date "2023.04.11"]
[WhiteClock "0:00:03"]
[BlackClock "0:00:18"]

1. e4 {[%clk 0:02:55]}  e5 {[%clk 0:02:59]} 2. f4 {[%clk 0:02:55]}  d5 {[%clk 0:02:58]} 3. exd5 {[%clk 0:02:55]}  exf4 {[%clk 0:02:58]} 4. Nf3 {[%clk 0:02:55]}  Nf6 {[%clk 0:02:57]} 5. Bb5+ {[%clk 0:02:48]}  Bd7 {[%clk 0:02:44]} 6. Bxd7+ {[%clk 0:02:36]}  Qxd7 {[%clk 0:02:34]} 7. c4 {[%clk 0:02:36]}  c6 {[%clk 0:02:12]} 8. dxc6 {[%clk 0:02:31]}  Nxc6 {[%clk 0:02:12]} 9. d4 {[%clk 0:02:27]}  O-O-O {[%clk 0:02:09]} 10. O-O {[%clk 0:01:51]}  Nxd4 {[%clk 0:02:00]} 11. Bxf4 {[%clk 0:01:43]}  Bc5 {[%clk 0:01:42]} 12. Kh1 {[%clk 0:01:43]}  h6 {[%clk 0:01:26]} 13. Nc3 {[%clk 0:01:24]}  Nxf3 {[%clk 0:01:13]} 14. Qxf3 {[%clk 0:01:22]}  Qd3 {[%clk 0:01:14]} 15. Rad1 {[%clk 0:00:39]}  Qxf3 {[%clk 0:01:12]} 16. gxf3 {[%clk 0:00:40]}  Rxd1 {[%clk 0:01:09]} 17. Rxd1 {[%clk 0:00:41]}  Rd8 {[%clk 0:01:08]} 18. Rxd8+ {[%clk 0:00:35]}  Kxd8 {[%clk 0:01:08]} 19. Be5 {[%clk 0:00:36]}  Ne8 {[%clk 0:00:52]} 20. Kg2 {[%clk 0:00:35]}  f6 {[%clk 0:00:53]} 21. Bg3 {[%clk 0:00:36]}  Bd4 {[%clk 0:00:47]} 22. Nb5 {[%clk 0:00:28]}  Bxb2 {[%clk 0:00:37]} 23. Nxa7 {[%clk 0:00:28]}  Bd4 {[%clk 0:00:38]} 24. Nb5 {[%clk 0:00:29]}  Bc5 {[%clk 0:00:38]} 25. Bf2 {[%clk 0:00:23]}  Bb4 {[%clk 0:00:31]} 26. f4 {[%clk 0:00:18]}  Kd7 {[%clk 0:00:24]} 27. Kf3 {[%clk 0:00:17]}  Nd6 {[%clk 0:00:23]} 28. Nxd6 {[%clk 0:00:11]}  Bxd6 {[%clk 0:00:23]} 29. Ke4 {[%clk 0:00:09]}  g6 {[%clk 0:00:19]} 30. Be3 {[%clk 0:00:04]}  Ke6 {[%clk 0:00:19]} 31. h3 {[%clk 0:00:03]}  f5+ {[%clk 0:00:18]} 32. Kd3 {[%clk 0:00:04]}  Kd7 {[%clk 0:00:17]} 33. c5 {[%clk 0:00:04]}  Be7 {[%clk 0:00:17]} 34. Kc4 {[%clk 0:00:04]}  Kc6 {[%clk 0:00:17]} 35. a4 {[%clk 0:00:03]}  g5 {[%clk 0:00:17]} 36. fxg5 {[%clk 0:00:02]}  hxg5 {[%clk 0:00:17]} 37. Bd4 {[%clk 0:00:03]}  f4 {[%clk 0:00:17]} 38. Bf2 {[%clk 0:00:03]}  Bd8 {[%clk 0:00:16]} 39. Kd3 {[%clk 0:00:02]}  Be7 {[%clk 0:00:17]} 40. Kc4 {[%clk 0:00:02]}  Bd8 {[%clk 0:00:17]} 41. Kd3 {[%clk 0:00:03]}  Be7 {[%clk 0:00:18]} 42. Kc4 {[%clk 0:00:03]} 1/2-1/2


[Site "https://www.chess.com"]

[Event "Titled Tuesday Blitz April 11 Early 2023"]
[White "Derichs, Roger"]
[Black "Darini, Pouria"]
[WhiteFideId "4630076"]
[BlackFideId "12502200"]
[WhiteElo "2365"]
[BlackElo "2482"]
[Result "0-1"]
[Round "02"]
[TimeControl "180+2"]
[Date "2023.04.11"]
[WhiteClock "0:00:01"]
[BlackClock "0:00:34"]

1. d4 {[%clk 0:03:00]}  Nf6 {[%clk 0:02:59]} 2. c4 {[%clk 0:02:58]}  e6 {[%clk 0:03:00]} 3. g3 {[%clk 0:02:55]}  d5 {[%clk 0:02:59]} 4. Nf3 {[%clk 0:02:50]}  Bb4+ {[%clk 0:02:59]} 5. Bd2 {[%clk 0:02:48]}  a5 {[%clk 0:03:00]} 6. Qc1 {[%clk 0:02:35]}  O-O {[%clk 0:02:55]} 7. Bg2 {[%clk 0:02:35]}  c5 {[%clk 0:02:52]} 8. dxc5 {[%clk 0:02:27]}  d4 {[%clk 0:02:48]} 9. O-O {[%clk 0:02:18]}  Nc6 {[%clk 0:02:45]} 10. Bg5 {[%clk 0:02:09]}  Bxc5 {[%clk 0:02:41]} 11. Nbd2 {[%clk 0:02:08]}  Be7 {[%clk 0:02:32]} 12. Rd1 {[%clk 0:01:59]}  e5 {[%clk 0:02:18]} 13. a3 {[%clk 0:01:38]}  Bf5 {[%clk 0:02:10]} 14. Nh4 {[%clk 0:01:34]}  Bg4 {[%clk 0:02:06]} 15. Kf1 {[%clk 0:01:18]}  h6 {[%clk 0:01:59]} 16. Bxf6 {[%clk 0:01:17]}  Bxf6 {[%clk 0:02:00]} 17. Nhf3 {[%clk 0:01:12]}  Bf5 {[%clk 0:01:54]} 18. Ne1 {[%clk 0:01:06]}  Bg5 {[%clk 0:01:49]} 19. Nef3 {[%clk 0:01:02]}  Be7 {[%clk 0:01:47]} 20. Ne1 {[%clk 0:01:01]}  Qb6 {[%clk 0:01:44]} 21. Be4 {[%clk 0:00:58]}  Bh3+ {[%clk 0:01:34]} 22. Bg2 {[%clk 0:00:56]}  Be6 {[%clk 0:01:28]} 23. Ne4 {[%clk 0:00:49]}  Rad8 {[%clk 0:01:24]} 24. c5 {[%clk 0:00:36]}  Qb5 {[%clk 0:01:15]} 25. Nd3 {[%clk 0:00:32]}  a4 {[%clk 0:01:14]} 26. Rd2 {[%clk 0:00:21]}  Na5 {[%clk 0:01:12]} 27. Rc2 {[%clk 0:00:15]}  Nb3 {[%clk 0:01:12]} 28. Qb1 {[%clk 0:00:14]}  f5 {[%clk 0:01:13]} 29. Nd6 {[%clk 0:00:13]}  Bxd6 {[%clk 0:01:13]} 30. cxd6 {[%clk 0:00:13]}  Rxd6 {[%clk 0:01:14]} 31. Rc7 {[%clk 0:00:09]}  Bd5 {[%clk 0:01:13]} 32. Bxd5+ {[%clk 0:00:07]}  Qxd5 {[%clk 0:01:13]} 33. Kg1 {[%clk 0:00:07]}  Rf7 {[%clk 0:00:57]} 34. Rc8+ {[%clk 0:00:06]}  Kh7 {[%clk 0:00:57]} 35. Qd1 {[%clk 0:00:06]}  Nxa1 {[%clk 0:00:54]} 36. Qxa1 {[%clk 0:00:07]}  b6 {[%clk 0:00:48]} 37. Qb1 {[%clk 0:00:07]}  Qe4 {[%clk 0:00:41]} 38. Qc1 {[%clk 0:00:05]}  Qxe2 {[%clk 0:00:37]} 39. Nb4 {[%clk 0:00:01]}  d3 {[%clk 0:00:34]} 0-1


[Site "https://www.chess.com"]

[Event "Titled Tuesday Blitz April 11 Early 2023"]
[White "Seo, Jung Min"]
[Black "Andrews, Todd"]
[WhiteFideId "1734687"]
[BlackFideId "2012456"]
[WhiteElo "2468"]
[BlackElo "2332"]
[Result "1-0"]
[Round "02"]
[TimeControl "180+2"]
[Date "2023.04.11"]
[WhiteClock "0:01:11"]
[BlackClock "0:00:18"]

1. e4 {[%clk 0:02:59]}  e6 {[%clk 0:02:57]} 2. d4 {[%clk 0:02:59]}  d5 {[%clk 0:02:58]} 3. e5 {[%clk 0:02:59]}  c5 {[%clk 0:02:57]} 4. c3 {[%clk 0:03:00]}  Nc6 {[%clk 0:02:58]} 5. Nf3 {[%clk 0:03:00]}  Bd7 {[%clk 0:02:58]} 6. Be2 {[%clk 0:02:55]}  Qb6 {[%clk 0:02:59]} 7. O-O {[%clk 0:02:55]}  Nge7 {[%clk 0:02:58]} 8. dxc5 {[%clk 0:02:54]}  Qxc5 {[%clk 0:02:53]} 9. Bf4 {[%clk 0:02:51]}  Ng6 {[%clk 0:02:41]} 10. Bg3 {[%clk 0:02:51]}  f6 {[%clk 0:02:34]} 11. exf6 {[%clk 0:02:51]}  gxf6 {[%clk 0:02:34]} 12. Nbd2 {[%clk 0:02:51]}  Qb6 {[%clk 0:02:23]} 13. c4 {[%clk 0:02:50]}  d4 {[%clk 0:02:17]} 14. Ne4 {[%clk 0:02:50]}  Be7 {[%clk 0:02:05]} 15. c5 {[%clk 0:02:50]}  Qa5 {[%clk 0:02:03]} 16. a3 {[%clk 0:02:46]}  O-O {[%clk 0:01:54]} 17. b4 {[%clk 0:02:45]}  Qd8 {[%clk 0:01:54]} 18. Nd6 {[%clk 0:02:29]}  b6 {[%clk 0:01:48]} 19. Nxd4 {[%clk 0:02:26]}  bxc5 {[%clk 0:01:43]} 20. bxc5 {[%clk 0:02:25]}  f5 {[%clk 0:01:41]} 21. h3 {[%clk 0:02:07]}  f4 {[%clk 0:01:40]} 22. Bh2 {[%clk 0:02:08]}  e5 {[%clk 0:01:38]} 23. Bc4+ {[%clk 0:02:06]}  Kh8 {[%clk 0:01:36]} 24. Nxc6 {[%clk 0:01:57]}  Bxc6 {[%clk 0:01:35]} 25. Nf7+ {[%clk 0:01:56]}  Rxf7 {[%clk 0:01:34]} 26. Qxd8+ {[%clk 0:01:48]}  Rxd8 {[%clk 0:01:33]} 27. Bxf7 {[%clk 0:01:48]}  Nh4 {[%clk 0:01:29]} 28. Rfd1 {[%clk 0:01:44]}  Rxd1+ {[%clk 0:01:05]} 29. Rxd1 {[%clk 0:01:43]}  Bxg2 {[%clk 0:01:05]} 30. Bd5 {[%clk 0:01:42]}  Bf3 {[%clk 0:00:58]} 31. c6 {[%clk 0:01:27]}  Bd6 {[%clk 0:00:39]} 32. Bxf3 {[%clk 0:01:22]}  Nxf3+ {[%clk 0:00:40]} 33. Kg2 {[%clk 0:01:22]}  Nh4+ {[%clk 0:00:40]} 34. Kf1 {[%clk 0:01:23]}  Nf5 {[%clk 0:00:35]} 35. Bg1 {[%clk 0:01:17]}  Kg7 {[%clk 0:00:34]} 36. f3 {[%clk 0:01:17]}  Kf6 {[%clk 0:00:32]} 37. Bxa7 {[%clk 0:01:15]}  Ke6 {[%clk 0:00:31]} 38. Bb6 {[%clk 0:01:15]}  h5 {[%clk 0:00:24]} 39. a4 {[%clk 0:01:14]}  h4 {[%clk 0:00:18]} 40. a5 {[%clk 0:01:13]}  e4 {[%clk 0:00:18]} 41. fxe4 {[%clk 0:01:13]}  Ng3+ {[%clk 0:00:18]} 42. Kg2 {[%clk 0:01:13]}  Nxe4 {[%clk 0:00:17]} 43. a6 {[%clk 0:01:12]}  Ng5 {[%clk 0:00:17]} 44. a7 {[%clk 0:01:12]}  f3+ {[%clk 0:00:18]} 45. Kf1 {[%clk 0:01:11]} 1-0


[Site "https://www.chess.com"]